Cogmind - Beta 16 @@@ ROGUE MODE // 2025.10.28 @ 20:40:32 Player: ClassActJerk Result: Destroyed by L-31 Rogue with Katana Performance ------------- Evolutions (1) 500 Regions Visited (3) 600 Robots Destroyed (27) 135 Value Destroyed (829) 829 Prototype IDs (1) 20 Alien Tech Used (0) 0 Bonus (0) 0 TOTAL SCORE: 2084 Bonus ------- None Cogmind --------- Core Integrity 0/400 Matter 300/300 Energy 77/100 System Corruption 17% Temperature Hot (226) Movement Rolling (95) Location -9/Mines Parts ------- > --- POWER (1) -------- (None) > --- PROPULSION (3) --- Compact Wheel Armored Wheel > --- UTILITY (3) ------ Reactive Plating Reactive Plating Tractor Beam > --- WEAPON (2) ------- Small Laser > --- INVENTORY (5) ---- Ion Engine Hover Unit Reactive Plating Reactive Plating Peak State ------------ > --- POWER ------------ Light Ion Engine > --- PROPULSION ------- Compact Wheel Armored Wheel > --- UTILITY ---------- Reactive Plating Reactive Plating Tractor Beam > --- WEAPON ----------- Small Laser Beam Rifle > --- INVENTORY -------- Ion Engine Hover Unit Reactive Plating Reactive Plating [Rating: 14] Favorites ----------- Power Reinforced Ion Engine Engine Reinforced Ion Engine Propulsion Aluminum Leg Treads Light Treads Leg Aluminum Leg Wheel Compact Wheel Utility Small Storage Unit Device Heat Sink Storage Small Storage Unit Protection Reactive Plating Weapon Light Assault Rifle Energy Gun Improved Medium Laser Ballistic Gun Light Assault Rifle Impact Weapon Hammer Build | -11 -10 -9 -9 ------- Run | Yrd Mat Mat Min Slots Evolved 2 | . . 2 . Power . | . . . . Propulsion 1 | . . 1 . Utility 1 | . . 1 . Weapon . | . . . . Parts Attached 31 | 6 4 20 1 Power 4 | 1 . 3 . Engine 4 | 1 . 3 . Core . | . . . . Reactor . | . . . . Propulsion 9 | 2 1 6 . Treads 2 | . . 2 . Leg 3 | 2 1 . . Wheel 4 | . . 4 . Hover . | . . . . Flight . | . . . . Utility 8 | 1 1 6 . Device 5 | . 1 4 . Storage 1 | 1 . . . Processor . | . . . . Hackware . | . . . . Protection 2 | . . 2 . Artifact . | . . . . Weapon 10 | 2 2 5 1 Energy Gun 4 | . . 3 1 Energy Cannon . | . . . . Ballistic Gun 5 | 2 2 1 . Ballistic Cannon . | . . . . Launcher . | . . . . Special Weapon . | . . . . Impact Weapon 1 | . . 1 . Slashing Weapon . | . . . . Piercing Weapon . | . . . . Special Melee Weapon . | . . . . Unidentified Prototypes 1 | . . 1 . Parts Lost 14 | . . 12 2 Power 1 | . . . 1 Propulsion 4 | . . 4 . Utility 4 | . . 4 . Weapon 5 | . . 4 1 Highest Loss Streak 5 | . . 5 2 To Critical Strikes . | . . . . Average Backups 1 | 1 1 1 4 Power . | . . . 1 Propulsion . | . . . 1 Utility . | . . . 2 Weapon . | 1 . . . Tool/Special . | . . . . Unused Backups 3 | . . . 3 Power . | . . . . Propulsion 1 | . . . 1 Utility 2 | . . . 2 Weapon . | . . . . Tool/Special . | . . . . Average Slot Usage (%) 66 | . 83 58 77 Engine 8 | . 6 9 7 Treads 1 | . . 2 . Leg 9 | . 24 2 . Wheel 4 | . . 6 22 Device 9 | . 9 10 11 Storage 9 | . 14 7 . Protection 1 | . . 1 22 Energy Gun 4 | . . 6 14 Ballistic Gun 13 | . 28 7 . Impact Weapon 2 | . . 4 . Peak Build Rating 14 | 6 7 13 14 Average Rating 7 | 3 5 8 12 On Entrance 6 | . 6 6 13 Avg Prop Armor Cover (%) . | . . . . Naked Turns . | . . . . Heaviest Build 25 | 10 11 25 . Greatest Support 42 | 20 20 42 . Greatest Overweight (x) 7 | 1 2 7 . Average Overweight (x) 1 | . . 1 . Largest Inventory Capacity 8 | 8 8 8 5 Average Capacity 7 | 7 8 7 5 Most Carried 6 | 6 4 5 5 Average Carried 1 | 2 1 1 4 Final Capacity 8 | 8 8 5 5 Final Carried 5 | 1 1 5 4 Class Distribution -------------------- 75% | Mutant 24% | Scavenger-Mutant Dominant Class ---------------- Mutant | -10/Materials Mutant | -9/Materials Scavenger-Mutant | -9/Mines Resources | -11 -10 -9 -9 ----------- Run | Yrd Mat Mat Min Matter Collected 700 | 217 117 356 10 Remotely 98 | . . 88 10 Salvage Created 1142 | . 183 922 37 Parts 60 | . 8 50 2 Haulers Intercepted . | . . . . Recyclers Shooed 1 | . . 1 . Parts Field Recycled . | . . . . Retrieved Matter . | . . . . Parts Self-Destructed . | . . . . Prevented . | . . . . Parts Restored . | . . . . Kills | -11 -10 -9 -9 ------- Run | Yrd Mat Mat Min Combat Hostiles Destroyed 24 | . 4 19 1 Melee 4 | . . 4 . Guns 18 | . 4 13 1 Classes Destroyed 6 | . 1 5 . Worker 1 | . . 1 . Recycler 2 | . . 2 . Swarmer 3 | . . 3 . Grunt 14 | . 4 9 1 Brawler 2 | . . 2 . Sentry 5 | . . 5 . Best Kill Streak 5 | . 2 5 1 Combat Bots Only 3 | . 2 3 1 Max Kills in Single Turn 2 | . 1 2 1 Gunslinging 1 | . . 1 . Exploded . | . . . . Melee 1 | . . 1 . Uniques/NPCs Destroyed . | . . . . Combat | -11 -10 -9 -9 -------- Run | Yrd Mat Mat Min Hostile Shots Fired 200 | . 33 153 14 Missed 42 | . 5 35 2 Hits 158 | . 28 118 12 Melee 17 | . . 9 8 Projectile 141 | . 28 109 4 Critical Strikes 5 | . . 5 . Damage Taken 2315 | . 406 1613 296 Core 542 | . 111 399 32 Absorbed by Shields . | . . . . Ignored by Resistances 10 | . . 10 . Regen/Repaired (Parts) 20 | . 20 . . Core Remaining (%) 77 | 100 55 . . Volleys Fired 82 | . 27 48 7 Largest 2 | . 2 2 2 Hottest 112 | . 40 112 96 Shots Fired 140 | . 54 75 11 Gun 140 | . 54 75 11 Cannon . | . . . . Launcher . | . . . . Special . | . . . . Kinetic 84 | . 54 30 . Thermal 56 | . . 45 11 Explosive . | . . . . Electromagnetic . | . . . . Robot Hit Streak 12 | . 12 10 9 Robot Miss Streak 4 | . 2 4 4 Penetration Max . | . . . . Secondary Targets 1 | . . 1 . Max Gunslinging Chain 1 | . . 1 . Shots Hit Robots 118 | . 42 70 6 Core Hits 42 | . 11 29 2 Critical Kills 2 | . 2 . . Critical Parts Destroyed 2 | . . 2 . Critical Strikes 8 | . 2 6 . Burn 4 | . . 4 . Destroy 2 | . 2 . . Smash 2 | . . 2 . Melee Attacks 20 | . . 20 . Impact 20 | . . 20 . Slashing . | . . . . Piercing . | . . . . Sneak Attacks 1 | . . 1 . Combat Hostiles . | . . . . Follow-up Attacks . | . . . . Damage Inflicted 1552 | . 321 1161 70 Guns 1158 | . 321 767 70 Cannons . | . . . . Explosions . | . . . . Melee 394 | . . 394 . Ramming . | . . . . Kinetic 612 | . 321 291 . Thermal 546 | . . 476 70 Explosive . | . . . . Electromagnetic . | . . . . Impact 394 | . . 394 . Slashing . | . . . . Piercing . | . . . . Highest Corruption 17 | . . 17 17 Average Corruption 8 | . . 8 17 Corruption Purged . | . . . . Corruption Blocked . | . . . . Effects 37 | . . 36 1 Message Errors 9 | . . 9 . Matter Fused 8 | . . 8 . Heat Flow Errors 4 | . . 4 . Energy Discharges 4 | . . 4 . Parts Rejected 2 | . . 2 . Parts Fused 1 | . . 1 . Data Loss (minor) 5 | . . 5 . Data Loss (major) 1 | . . 1 . Misfires 1 | . . . 1 Alerts 1 | . . 1 . Misdirections 1 | . . 1 . Overload Shots . | . . . . Overflow Damage 73 | . . 73 . Projectiles . | . . . . Explosions . | . . . . Melee 73 | . . 73 . Knockbacks 3 | . . 3 . Impact 2 | . . 2 . Kinetic . | . . . . Secondary 1 | . . 1 . Self-Inflicted Damage . | . . . . Shots . | . . . . Rammed . | . . . . Targets Rammed . | . . . . Kicked . | . . . . Crushed . | . . . . Highest Temperature 243 | . 12 243 226 Average Temperature 54 | . 5 56 96 Received Heat Transfer 789 | . 183 582 24 Effects 1 | . . . 1 Interference 1 | . . . 1 Siege Activations . | . . . . Martial Activations . | . . . . Shielding Activations . | . . . . Robots Disrupted . | . . . . Combat Hostiles . | . . . . Robots Corrupted 1 | . . 1 . Combat Hostiles 1 | . . 1 . Parts Fried 2 | . . 2 . Impact Corruptions 3 | . . 3 . Robots Melted 1 | . . 1 . Combat Hostiles 1 | . . 1 . Parts Melted 6 | . . 6 . Heat Transferred 1533 | . . 1371 162 Parts Sabotaged . | . . . . Parts Stolen . | . . . . Parts Stripped . | . . . . Power Chain Reactions . | . . . . Alert | -11 -10 -9 -9 ------- Run | Yrd Mat Mat Min Maximum Alert Level . | . . . . Low Security (%) 100 | 100 100 100 100 Level 1 . | . . . . Level 2 . | . . . . Level 3 . | . . . . Level 4 . | . . . . Level 5 . | . . . . High Security . | . . . . Max Security . | . . . . Peak Influence 150 | . 41 150 60 Initial 50 | . . . 50 Average 25 | . 6 34 51 Influence Increases 673 | . 118 535 20 Destroy 0b10 Robot/C 480 | . 80 380 20 Destroy 0b10 Robot/NC 15 | . . 15 . Destroy Leader 130 | . 20 110 . Successful Hack 18 | . 18 . . Lose Combat Pursuer 30 | . . 30 . Influence Decreases 623 | . 118 405 100 Entered New Map 80 | . . . 80 Time Decay 433 | . 118 315 . Lost Part 110 | . . 90 20 Squads Dispatched 5 | . 2 3 . Investigation 2 | . . 2 . Extermination . | . . . . Reinforcement 3 | . 2 1 . Assault . | . . . . Garrison . | . . . . Intercept . | . . . . Searches Triggered . | . . . . Construction Impeded . | . . . . Haulers Reinforced . | . . . . Active Scanning Responses . | . . . . Cargo Convoy Interrupts . | . . . . Stealth | -11 -10 -9 -9 --------- Run | Yrd Mat Mat Min Distress Signals 3 | . 1 2 . Communications Jammed . | . . . . Distress Signals . | . . . . Times Spotted 45 | . 10 33 2 Peak Tracking Total 5 | . 3 5 2 Tactical Retreats 1 | . . 1 . Traps | -11 -10 -9 -9 ------- Run | Yrd Mat Mat Min Traps Triggered 3 | . 2 1 . Indirectly . | . . . . Trap Hack Attempts . | . . . . Triggered . | . . . . Disarmed . | . . . . Reprogrammed . | . . . . Reused . | . . . . Traps Extracted . | . . . . Installed . | . . . . Triggered . | . . . . Machines | -11 -10 -9 -9 ---------- Run | Yrd Mat Mat Min Machines Disabled . | . . . . Max in Single Turn . | . . . . Machines Repaired . | . . . . Machines Dismantled . | . . . . Machines Sabotaged . | . . . . Overloaded Fab Kills . | . . . . Hacking | -11 -10 -9 -9 --------- Run | Yrd Mat Mat Min Machines Accessed 4 | . 3 1 . Terminals 2 | . 2 . . Fabricators . | . . . . Repair Stations 1 | . 1 . . Recycling Units . | . . . . Scanalyzers 1 | . . 1 . Garrison Access . | . . . . Total Hacks 21 | . 18 3 . Successful 15 | . 13 2 . Failed 6 | . 5 1 . Catastrophic . | . . . . Database Lockouts . | . . . . Manual . | . . . . Terminals 8 | . 8 . . Fabricators . | . . . . Repair Stations 10 | . 10 . . Recycling Units . | . . . . Scanalyzers 3 | . . 3 . Garrison Access . | . . . . Terminal Hacks 4 | . 4 . . Record 1 | . 1 . . Alert Level 1 | . 1 . . Dispatch Records 1 | . 1 . . Transport Status 1 | . 1 . . Fabricator Hacks . | . . . . Repair Station Hacks 9 | . 9 . . Scan Component 5 | . 5 . . Repair 4 | . 4 . . Recycling Unit Hacks . | . . . . Scanalyzer 2 | . . 2 . Insert Component 1 | . . 1 . Analyze 1 | . . 1 . Garrison Access Hacks . | . . . . Unauthorized Hacks . | . . . . Terminals . | . . . . Fabricators . | . . . . Repair Stations . | . . . . Recycling Units . | . . . . Scanalyzers . | . . . . Garrison Access . | . . . . Data Cores Recovered . | . . . . Used . | . . . . Hacking Detections 3 | . 2 1 . Full Trace Events 3 | . 2 1 . Feedback Events . | . . . . Feedback Blocked . | . . . . Robot Schematics Acquired . | . . . . Robots Built . | . . . . Authchips . | . . . . Time . | . . . . Total Robot Build Rating . | . . . . Part Schematics Acquired . | . . . . Parts Built . | . . . . Authchips . | . . . . Time . | . . . . Total Part Build Rating . | . . . . Part Studies Acquired . | . . . . Parts Repaired 4 | . 4 . . Time 104 | . 104 . . Parts Recycled . | . . . . Recycled Matter . | . . . . Retrieved Matter . | . . . . Retrieved Components . | . . . . Parts Scanalyzed 1 | . . 1 . Part Schematics Acquired . | . . . . Parts Damaged . | . . . . Bothacking | -11 -10 -9 -9 ------------ Run | Yrd Mat Mat Min Used RIF Installer . | . . . . Robots Hacked . | . . . . Non-combat . | . . . . Combat . | . . . . Robot Hacks Applied . | . . . . Relay Couplers Released . | . . . . Fabnet Peak Effective % . | . . . . Robots Rewired . | . . . . Allies Hacked . | . . . . Hacks Repelled . | . . . . Allies | -11 -10 -9 -9 -------- Run | Yrd Mat Mat Min Total Allies . | . . . . Largest Group . | . . . . Highest-Rated Group . | . . . . Highest-Rated Ally . | . . . . Total Orders . | . . . . Ally Attacks . | . . . . Total Damage . | . . . . Kills . | . . . . Allies Corrupted . | . . . . Allies Melted . | . . . . Intel | -11 -10 -9 -9 ------- Run | Yrd Mat Mat Min Active Infowar (turns) . | . . . . Robot Analysis Total . | . . . . Derelict Logs Recovered . | . . . . Drone Launches . | . . . . Drone Recoveries . | . . . . Exploration | -11 -10 -9 -9 ------------- Run | Yrd Mat Mat Min Turns Passed 1815 | 55 530 1211 19 Spaces Moved 625 | 48 199 378 . Core 161 | 26 12 123 . Treads 71 | . . 71 . Legs 263 | 22 187 54 . Wheels 130 | . . 130 . Hover . | . . . . Flight . | . . . . Fastest Speed 50 | 50 120 90 . Average Speed 160 | 89 121 190 . Slowest Speed 400 | 120 150 400 . Overloaded Moves . | . . . . Propulsion Burnouts . | . . . . Robots Hopped . | . . . . Potential Cave-ins . | . . . . Cave-ins Triggered . | . . . . Exploration Rate (%) 16 | 4 30 28 5 Regions Visited 3 Branch Regions 1 Pre-discovered Areas . | . . . . Known Exits Taken . | . . . . Unknown Exits Taken 3 | 1 1 1 . Scrap Searched . | . . . . Spaces Dug . | . . . . Terrain Destroyed . | . . . . Melee . | . . . . Projectile . | . . . . AOE . | . . . . Terrain Rammed . | . . . . Walls Destroyed . | . . . . Machines Disabled . | . . . . Actions | -11 -10 -9 -9 --------- Run | Yrd Mat Mat Min Total 1274 | 59 444 761 10 Wait 471 | . 205 264 2 Move 622 | 47 198 377 . Hop . | . . . . Pick Up 35 | 6 6 23 . Fast Attach 3 | 1 . 2 . Attach 28 | 5 5 17 1 Detach 1 | . . 1 . Swap 5 | . 1 4 . Drop 7 | . 2 5 . Fire 82 | . 27 48 7 Melee 20 | . . 20 . Ram . | . . . . Kick . | . . . . Crush . | . . . . Escape Stasis . | . . . . Rewire . | . . . . Trap . | . . . . Miscellaneous . | . . . . Route ------- -11/Scrapyard -10/Materials -9/Materials -9/Mines History --------- Turn | Location | Event 4 | -11/Scrapyard | Discovered new exit (range 16) 56 | -11/Scrapyard | Entered Materials 293 | -10/Materials | Repaired Aluminum Leg 293 | -10/Materials | Repaired Aluminum Leg 293 | -10/Materials | Repaired Lgt. Ion Engine 308 | -10/Materials | Build established: Mutant 319 | -10/Materials | Repaired Heat Sink 547 | -10/Materials | Discovered new exit (range 14) 586 | -10/Materials | Entered another Materials area 586 | -9/Materials | Evolved 2 slots: Propulsion x1, Utility x1 753 | -9/Materials | Lost 5 parts (2n1u2w) 926 | -9/Materials | Core integrity fell below 50% 1462 | -9/Materials | Core integrity fell below 20% 1462 | -9/Materials | System corruption reached 10% 1492 | -9/Materials | Lost 3 parts (2u1w) 1722 | -9/Materials | Discovered new exit (range 15) 1797 | -9/Materials | Entered Mines 1805 | -9/Mines | Build established: Scavenger-Mutant 1816 | -9/Mines | Destroyed by L-31 Rogue with Katana Last Messages --------------- 01759_ Acquired 32 matter. 01762_ Acquired Beam Rifle. 01763_ R-06 Scavenger collects Heat Sink. 01765_ R-06 Scavenger collects Lgt. Treads. 01770_ R-06 Scavenger collects Hvy. Assault Rifle. 01779_ =WIELPMXGZGWBNR2C&PH|,PY